[Event "360 One Wealth GP-4 2024"]
[Site "Mumbai"]
[Date "2024.03.13"]
[Round "3.5"]
[White "Mishra Sanjeev"]
[Black "Sunil, Vaidya"]
[Result "1/2-1/2"]
[ECO "D02"]
[WhiteElo "1833"]
[BlackElo "1640"]
[Annotator "NA RC"]
[PlyCount "129"]
[EventDate "2024.03.10"]
[EventCountry "IND"]
[SourceTitle "playchess.com"]
[Source "ChessBase"]
[SourceQuality "1"]
[TimeControl "5400+30"]

1. d4 {[%emt 0:09:09]} d5 {[%emt 0:00:19]} 2. Nf3 {[%emt 0:00:09]} Nf6 {[%emt 0:00:20]} 3. g3 {[%emt 0:00:05]} g6 {[%emt 0:01:26]} 4. Bg2 {[%emt 0:00:02]} Bg7 {[%emt 0:00:06]} 5. O-O {[%emt 0:00:05]} O-O {[%emt 0:00:06]} 6. Nbd2 {[%emt 0:00:02]} c5 {[%emt 0:03:35] 6...a5 is setting a new trend.} 7. dxc5 {[%emt 0:00:24]} Nc6 {[%emt 0:00:17] D02: 1 d4 d5 2 Nf3 sidelines, including 2...Nf6 3 g3 and 2...Nf6 3 Bf4.} 8. c4 {[%emt 0:01:14]} d4 {[%emt 0:01:57]} 9. Nb3 {[%emt 0:01:38]} e5 {[%emt 0:01:02]} 10. Ne1 $146 {[%emt 0:01:17]} ({Predecessor:} 10. e3 d3 11. e4 Nxe4 12. Nxe5 Nxe5 13. Bxe4 Nxc4 14. Qxd3 Qxd3 15. Bxd3 Nxb2 16. Bxb2 Bxb2 {1-0 Beinhauer,B (1589)-Mikhno,A (1455) Prague Golden op 2022 (6)}) 10... Be6 {[%emt 0:01:09]} 11. Nd2 {[%emt 0:04:55]} Qe7 {[%emt 0:03:46]} 12. Nd3 {[%emt 0:02:59]} e4 {[%emt 0:05:42]} 13. Nxe4 {[%emt 0:02:41]} Nxe4 {[%emt 0:00:36]} 14. Bxe4 {[%emt 0:00:02]} Bxc4 {[%emt 0:00:13]} 15. Bxc6 {[%emt 0:00:40]} bxc6 {[%emt 0:00:57]} 16. Qc2 {[%emt 0:00:06]} Bd5 {[%emt 0:04:32]} 17. f3 {[%emt 0:07:42]} Rfe8 {[%emt 0:09:24]} 18. Nf4 {[%emt 0:02:04]} Rad8 {[%emt 0:00:39]} 19. Rf2 {[%emt 0:01:13]} g5 {[%emt 0:01:24]} 20. Nd3 {[%emt 0:01:22]} h5 {[%emt 0:01:26]} 21. Bd2 {[%emt 0:00:52]} Be6 {[%emt 0:02:02]} 22. Nb4 {[%emt 0:02:46]} Bd5 {[%emt 0:05:46]} 23. Re1 {[%emt 0:03:22]} a5 {[%emt 0:04:21]} 24. Nxd5 {[%emt 0:01:46]} Rxd5 {[%emt 0:00:16]} 25. Bxa5 {[%emt 0:04:14]} Qxc5 {[%emt 0:03:57]} 26. Qxc5 {[%emt 0:00:15]} Rxc5 {[%emt 0:00:07]} 27. Bd2 {[%emt 0:02:41]} Rc2 {[%emt 0:03:31]} 28. Bc1 {[%emt 0:06:46]} Re5 {[%emt 0:04:27]} 29. e4 {[%emt 0:16:27]} Rec5 {[%emt 0:01:56]} 30. Rxc2 {[%emt 0:01:39]} Rxc2 {[%emt 0:00:14]} 31. Rd1 {[%emt 0:00:20]} (31. Bxg5 $14 {stays ahead.} Rxb2 32. Rc1) 31... c5 {[%emt 0:02:07]} 32. Bxg5 {[%emt 0:07:02]} Rxb2 {[%emt 0:05:27]} 33. Rd2 {[%emt 0:00:14]} Rb1+ {[%emt 0:00:55]} 34. Kf2 {[%emt 0:00:03]} c4 {[%emt 0:00:57]} 35. Rc2 {[%emt 0:00:11]} c3 {[%emt 0:00:44]} 36. Ke2 {[%emt 0:00:01]} Rh1 {[%emt 0:05:06]} 37. h4 {[%emt 0:01:33]} Rh2+ {[%emt 0:01:16]} 38. Kd3 {[%emt 0:00:24]} Rh1 {[%emt 0:00:40]} 39. Rc1 {[%emt 0:00:20]} Rh2 {[%emt 0:00:35]} 40. Ra1 {[%emt 0:01:40]} Rf2 {[%emt 0:01:04] [#]} ({Black should play} 40... Be5 $1 $14) 41. a4 $2 {[%emt 0:00:44]} (41. Bf4 $1 $16 {is forced if you want to stay better.}) 41... Rxf3+ {[%emt 0:01:49]} 42. Ke2 {[%emt 0:00:09]} Rxg3 {[%emt 0:00:46]} 43. a5 {[%emt 0:00:04]} d3+ {[%emt 0:01:16]} 44. Kf2 {[%emt 0:00:01]} Rg4 {[%emt 0:05:01]} 45. a6 {[%emt 0:01:28]} Bd4+ {[%emt 0:04:16]} 46. Kf3 {[%emt 0:01:41]} d2 {[%emt 0:02:08]} 47. Bxd2 {[%emt 0:07:07]} cxd2 {[%emt 0:01:17]} 48. Rd1 {[%emt 0:00:01]} Rxh4 {[%emt 0:02:14]} 49. Rxd2 {[%emt 0:00:01]} Bb6 {[%emt 0:02:12]} 50. Rb2 {[%emt 0:00:23]} Ba7 {[%emt 0:00:46]} 51. Rb7 {[%emt 0:00:07]} Bg1 {[%emt 0:00:31]} 52. a7 {[%emt 0:01:28]} Bxa7 {[%emt 0:00:13]} 53. Rxa7 {[%emt 0:00:01]} Kg7 {[%emt 0:00:21]} 54. Ra6 {[%emt 0:00:03]} f6 {[%emt 0:00:39]} 55. Re6 {[%emt 0:02:21]} Kf7 {[%emt 0:01:03]} 56. Ra6 $15 {[%emt 0:00:02]} Rg4 {[%emt 0:00:32]} 57. Ra5 {[%emt 0:00:27]} Rg5 {[%emt 0:00:34]} 58. Ra8 {[%emt 0:00:14]} Kg7 {[%emt 0:00:14]} 59. Kf4 {[%emt 0:00:31]} h4 {[%emt 0:00:53]} 60. Rb8 {[%emt 0:01:16]} h3 {[%emt 0:00:52]} 61. Rb2 {[%emt 0:01:04]} Kg6 {[%emt 0:01:30]} 62. Rh2 {[%emt 0:00:00]} Rh5 {[%emt 0:00:16]} 63. Kg4 {[%emt 0:00:00]} Re5 {[%emt 0:01:50]} 64. Kf4 {[%emt 0:00:00]} Rh5 {[%emt 0:00:18]} 65. Kg4 {[%emt 0:00:00]} 1/2-1/2

[Event "360 One Wealth GP-4 2024"]
[Site "Mumbai"]
[Date "2024.03.13"]
[Round "3.6"]
[White "Ishan Roy"]
[Black "Ram Vishal Parab"]
[Result "1-0"]
[ECO "C84"]
[WhiteElo "1609"]
[BlackElo "1807"]
[Annotator "NA RC"]
[PlyCount "95"]
[EventDate "2024.03.10"]
[EventCountry "IND"]
[SourceTitle "playchess.com"]
[Source "ChessBase"]
[SourceQuality "1"]
[TimeControl "5400+30"]

1. e4 {[%emt 0:00:23]} e5 {[%emt 0:00:06]} 2. Nf3 {[%emt 0:00:03]} Nc6 {[%emt 0:00:06]} 3. Bb5 {[%emt 0:00:05]} a6 {[%emt 0:00:06]} 4. Ba4 {[%emt 0:00:04]} Nf6 {[%emt 0:00:06]} 5. d3 {[%emt 0:00:05]} b5 {[%emt 0:00:04]} 6. Bb3 {[%emt 0:00:06]} Be7 {[%emt 0:00:05]} 7. a4 {[%emt 0:00:05]} b4 {[%emt 0:00:26]} 8. a5 {[%emt 0:00:04]} d6 {[%emt 0:00:09]} 9. O-O {[%emt 0:00:07]} O-O {[%emt 0:00:12]} 10. Nbd2 {[%emt 0:00:04]} Be6 {[%emt 0:00:36] C84: Closed Ruy Lopez: Unusual White 6th moves.} 11. Nc4 {[%emt 0:00:10]} Rb8 {[%emt 0:01:17]} 12. c3 {[%emt 0:00:01]} h6 {[%emt 0:06:27]} 13. d4 {[%emt 0:00:04]} exd4 {[%emt 0:03:53]} 14. cxd4 {[%emt 0:00:02]} Bg4 {[%emt 0:01:31]} 15. Ne3 {[%emt 0:13:45]} Bh5 {[%emt 0:06:34]} 16. Nf5 {[%emt 0:09:19]} d5 {[%emt 0:14:44]} 17. exd5 {[%emt 0:10:12]} Nxd5 {[%emt 0:05:25]} 18. Qc2 {[%emt 0:01:43]} Qd7 {[%emt 0:12:38]} 19. Ba4 {[%emt 0:01:55]} Bg6 {[%emt 0:00:20]} 20. Bxc6 {[%emt 0:02:45]} Bxf5 {[%emt 0:00:21]} 21. Qc4 {[%emt 0:00:35]} Bd3 {[%emt 0:00:13]} 22. Qxd5 {[%emt 0:02:36]} Qxd5 {[%emt 0:00:10]} 23. Bxd5 {[%emt 0:00:01]} Bxf1 {[%emt 0:00:02]} 24. Kxf1 {[%emt 0:00:01]} c5 {[%emt 0:05:37]} 25. Ne5 {[%emt 0:02:00]} Rbc8 {[%emt 0:07:10]} 26. Bb7 {[%emt 0:06:46]} Rc7 {[%emt 0:02:14]} 27. Bxa6 {[%emt 0:00:48]} cxd4 {[%emt 0:00:37]} 28. Bf4 {[%emt 0:01:55]} g5 {[%emt 0:03:54]} 29. Bg3 {[%emt 0:02:27]} Bd6 {[%emt 0:03:16]} 30. Nd3 {[%emt 0:04:25]} Bxg3 {[%emt 0:00:56]} 31. hxg3 {[%emt 0:00:02]} Rb8 {[%emt 0:03:22]} 32. b3 {[%emt 0:00:46]} Kf8 {[%emt 0:01:27]} 33. Bc4 {[%emt 0:00:18]} Ke7 {[%emt 0:00:13]} 34. a6 {[%emt 0:00:34]} Ra7 {[%emt 0:00:32]} 35. Ne5 {[%emt 0:01:18]} Rc8 {[%emt 0:00:31]} 36. Re1 {[%emt 0:01:44]} Kf6 {[%emt 0:00:50]} 37. Nd3 {[%emt 0:00:45]} Rb8 {[%emt 0:00:34]} 38. Re4 {[%emt 0:01:13]} Rd7 {[%emt 0:01:21]} 39. Ne5 {[%emt 0:00:55]} Rc7 {[%emt 0:01:03]} 40. Ng4+ {[%emt 0:01:29]} Kf5 {[%emt 0:03:21]} 41. Rxd4 {[%emt 0:00:10]} h5 {[%emt 0:01:05]} 42. Rd5+ {[%emt 0:01:25]} Kg6 {[%emt 0:01:44]} 43. Ne5+ {[%emt 0:01:29]} Kg7 {[%emt 0:00:26]} 44. Rd7 {[%emt 0:01:59]} Rbc8 {[%emt 0:01:07]} 45. Rxc7 {[%emt 0:01:29]} Rxc7 {[%emt 0:00:01]} 46. Nd3 {[%emt 0:00:09]} Kf6 {[%emt 0:00:24]} 47. Nxb4 {[%emt 0:00:07]} Ke5 $18 {[%emt 0:00:10]} 48. a7 {[%emt 0:00:27]} 1-0

[Event "360 One Wealth GP-4 2024"]
[Site "Mumbai"]
[Date "2024.03.13"]
[Round "3.7"]
[White "Guru Prakash"]
[Black "Arjun Singh"]
[Result "1-0"]
[ECO "C06"]
[WhiteElo "1794"]
[BlackElo "1602"]
[Annotator "NA"]
[PlyCount "67"]
[EventDate "2024.03.10"]
[EventCountry "IND"]
[SourceTitle "playchess.com"]
[Source "ChessBase"]
[SourceQuality "1"]
[TimeControl "5400+30"]

1. e4 {[%emt 0:00:20]} e6 {[%emt 0:00:11]} 2. d4 {[%emt 0:00:10]} d5 {[%emt 0:00:09]} 3. Nd2 {[%emt 0:00:12]} Nf6 {[%emt 0:00:10]} 4. e5 {[%emt 0:00:05]} Nfd7 {[%emt 0:00:09]} 5. Bd3 {[%emt 0:00:21]} c5 {[%emt 0:00:10]} 6. c3 {[%emt 0:00:02]} Nc6 {[%emt 0:00:09]} 7. Ne2 {[%emt 0:00:22]} Be7 {[%emt 0:00:18]} 8. O-O {[%emt 0:00:26]} c4 {[%emt 0:00:11]} 9. Bc2 {[%emt 0:02:04]} b5 {[%emt 0:00:08]} 10. f4 {[%emt 0:00:45]} g6 {[%emt 0:00:07]} 11. Nf3 {[%emt 0:00:56]} a5 {[%emt 0:00:22]} 12. g4 {[%emt 0:02:10]} h5 {[%emt 0:00:18]} 13. gxh5 {[%emt 0:04:38]} Rxh5 {[%emt 0:00:39]} 14. Ng3 {[%emt 0:00:08]} Rh8 {[%emt 0:00:11]} 15. Ng5 {[%emt 0:01:42]} Nf8 {[%emt 0:00:22]} 16. Qg4 {[%emt 0:00:41]} Bxg5 {[%emt 0:02:31]} 17. fxg5 {[%emt 0:01:05]} Ne7 {[%emt 0:00:07]} 18. h4 {[%emt 0:14:06]} Nf5 {[%emt 0:00:44]} 19. Nxf5 {[%emt 0:00:20]} exf5 {[%emt 0:00:09]} 20. Qg3 {[%emt 0:00:43]} Ne6 {[%emt 0:00:55]} 21. Kg2 {[%emt 0:03:14]} Bb7 {[%emt 0:00:36]} 22. Rh1 {[%emt 0:00:38]} Qd7 {[%emt 0:02:18]} 23. h5 {[%emt 0:02:40]} O-O-O {[%emt 0:00:57]} 24. Bd2 {[%emt 0:01:13]} Kc7 {[%emt 0:01:03]} 25. Rh4 {[%emt 0:04:37]} Qe7 {[%emt 0:01:53]} 26. Rah1 {[%emt 0:01:37]} Kb6 {[%emt 0:10:24]} 27. hxg6 {[%emt 0:05:35]} Rxh4 {[%emt 0:00:11]} 28. Qxh4 {[%emt 0:00:23]} fxg6 {[%emt 0:01:00]} 29. Qh7 {[%emt 0:00:17]} Qe8 {[%emt 0:00:29]} 30. Rh6 {[%emt 0:03:23]} Nf8 {[%emt 0:00:32]} 31. Qg7 {[%emt 0:00:25]} Rc8 {[%emt 0:12:30]} 32. Bxf5 {[%emt 0:03:27]} Rc6 {[%emt 0:01:38]} 33. Rh8 {[%emt 0:08:24]} gxf5 {[%emt 0:00:27]} 34. Qxf8 {[%emt 0:00:03]} 1-0

[Event "360 One Wealth GP-4 2024"]
[Site "Mumbai"]
[Date "2024.03.13"]
[Round "3.8"]
[White "Muthe Dhruv"]
[Black "Kapadi Yash"]
[Result "0-1"]
[ECO "B07"]
[WhiteElo "1539"]
[BlackElo "1779"]
[Annotator "NA RC"]
[PlyCount "70"]
[EventDate "2024.03.10"]
[EventCountry "IND"]
[SourceTitle "playchess.com"]
[Source "ChessBase"]
[SourceQuality "1"]
[TimeControl "5400+30"]

1. e4 {[%emt 0:06:12]} d6 {[%emt 0:12:27]} 2. d4 {[%emt 0:02:50]} Nf6 {[%emt 0:00:03]} 3. Bd3 {[%emt 0:02:35]} e5 {[%emt 0:00:13]} 4. dxe5 {[%emt 0:00:38]} dxe5 {[%emt 0:00:07]} 5. Nf3 {[%emt 0:01:07]} c6 {[%emt 0:01:17]} 6. b3 {[%emt 0:01:02]} Bb4+ {[%emt 0:02:40]} 7. c3 {[%emt 0:03:42]} Bd6 {[%emt 0:00:31]} 8. h3 {[%emt 0:03:35]} O-O 9. Bb2 {[%emt 0:01:30]} Nbd7 {[%emt 0:01:25]} 10. Nbd2 {[%emt 0:05:19]} Nc5 {[%emt 0:05:59]} 11. Bc2 {[%emt 0:00:36]} Qe7 {[%emt 0:05:36]} 12. Qe2 {[%emt 0:02:47]} b6 {[%emt 0:01:00]} 13. Rd1 {[%emt 0:01:46]} Ba6 {[%emt 0:03:38]} 14. c4 {[%emt 0:01:02]} Rfe8 {[%emt 0:01:45]} 15. O-O {[%emt 0:01:44]} Ne6 {[%emt 0:10:21]} 16. g3 {[%emt 0:01:46]} Nf8 {[%emt 0:00:34]} 17. Nh4 {[%emt 0:02:12]} g6 {[%emt 0:00:14]} 18. Rfe1 {[%emt 0:11:53]} Bc8 {[%emt 0:05:25]} 19. Kh2 {[%emt 0:02:25]} Bb4 {[%emt 0:06:32]} 20. Rg1 {[%emt 0:08:52]} h5 {[%emt 0:13:13]} 21. Ndf3 {[%emt 0:04:03]} Bd6 {[%emt 0:01:54]} 22. Qd2 {[%emt 0:08:59]} Bc7 {[%emt 0:01:02]} 23. Qh6 {[%emt 0:06:15]} N8h7 {[%emt 0:04:03]} 24. Rd2 {[%emt 0:02:43]} Qe6 {[%emt 0:00:25]} 25. Nf5 {[%emt 0:10:56]} gxf5 {[%emt 0:00:15]} 26. exf5 {[%emt 0:00:21]} Ng4+ {[%emt 0:00:11]} 27. hxg4 {[%emt 0:01:34]} Qxh6 {[%emt 0:00:14]} 28. g5 {[%emt 0:04:01]} Nxg5 {[%emt 0:00:14]} 29. Nxg5 {[%emt 0:00:02]} Qxg5 {[%emt 0:00:02]} 30. Bc1 {[%emt 0:00:03]} Qf6 {[%emt 0:01:08]} 31. g4 {[%emt 0:01:08]} Qh4+ {[%emt 0:02:36]} 32. Kg2 {[%emt 0:00:02]} e4 {[%emt 0:00:43]} 33. gxh5 {[%emt 0:00:43]} Bxf5 {[%emt 0:00:55]} 34. Kf1+ {[%emt 0:00:22]} Kh7 {[%emt 0:00:51]} 35. Bb2 {[%emt 0:00:56]} Be5 {[%emt 0:00:24]} 0-1

[Event "360 One Wealth GP-4 2024"]
[Site "Mumbai"]
[Date "2024.03.13"]
[Round "3.9"]
[White "Shah Mihir"]
[Black "Shraddha Naresh Padvekar"]
[Result "1-0"]
[ECO "A00"]
[WhiteElo "1764"]
[BlackElo "1579"]
[Annotator "NA RC"]
[PlyCount "101"]
[EventDate "2024.03.10"]
[EventCountry "IND"]
[SourceTitle "playchess.com"]
[Source "ChessBase"]
[SourceQuality "1"]
[TimeControl "5400+30"]

1. e4 {[%emt 0:06:01]} g6 {[%emt 0:05:43]} 2. d4 {[%emt 0:00:14]} Bg7 {[%emt 0:00:14]} 3. Nc3 {[%emt 0:00:26]} d5 {[%emt 0:00:50]} 4. Nf3 {[%emt 0:00:32]} dxe4 {[%emt 0:04:12]} 5. Nxe4 {[%emt 0:00:26]} Bg4 {[%emt 0:02:19]} 6. Bc4 {[%emt 0:06:01]} Bxf3 {[%emt 0:09:06]} 7. Qxf3 {[%emt 0:00:43]} e6 {[%emt 0:01:04]} 8. Bg5 {[%emt 0:10:14]} Qc8 {[%emt 0:05:35]} 9. O-O-O {[%emt 0:02:40]} Nd7 {[%emt 0:03:54]} 10. Rhe1 {[%emt 0:02:13]} Nh6 {[%emt 0:02:14]} 11. Bxe6 {[%emt 0:02:59]} O-O {[%emt 0:05:04]} 12. Qh3 {[%emt 0:01:30]} fxe6 {[%emt 0:01:50]} 13. Bxh6 {[%emt 0:00:24]} Bxh6+ {[%emt 0:07:16]} 14. Qxh6 {[%emt 0:00:15]} Nf6 {[%emt 0:02:33]} 15. Ng5 {[%emt 0:00:28]} Re8 {[%emt 0:03:08]} 16. Rd3 {[%emt 0:02:05]} Qd7 {[%emt 0:02:09]} 17. Rf3 {[%emt 0:01:31]} Qg7 {[%emt 0:04:19]} 18. Qxg7+ {[%emt 0:00:47]} Kxg7 {[%emt 0:00:02]} 19. Rxe6 {[%emt 0:01:00]} Rxe6 {[%emt 0:09:13]} 20. Nxe6+ {[%emt 0:00:11]} Kf7 {[%emt 0:00:07]} 21. Nxc7 {[%emt 0:04:01]} Rd8 {[%emt 0:00:19]} 22. c4 {[%emt 0:12:43]} Rxd4 {[%emt 0:05:15]} 23. Nd5 {[%emt 0:01:20]} Rxc4+ {[%emt 0:04:50]} 24. Kb1 {[%emt 0:00:03]} Rc6 {[%emt 0:00:34]} 25. Rxf6+ {[%emt 0:00:12]} Rxf6 {[%emt 0:00:34]} 26. Nxf6 {[%emt 0:00:03]} Kxf6 {[%emt 0:00:02]} 27. Kc2 {[%emt 0:00:18]} Ke5 {[%emt 0:05:45]} 28. Kd3 {[%emt 0:00:13]} Kd5 {[%emt 0:01:21]} 29. f4 {[%emt 0:00:31]} b5 {[%emt 0:01:29]} 30. g4 {[%emt 0:00:21]} a5 {[%emt 0:00:43]} 31. h3 {[%emt 0:00:32]} h6 {[%emt 0:00:38]} 32. Ke3 {[%emt 0:00:42]} a4 {[%emt 0:01:32]} 33. Kd3 {[%emt 0:00:33]} b4 {[%emt 0:01:25]} 34. b3 {[%emt 0:00:02]} a3 {[%emt 0:00:34]} 35. Ke3 {[%emt 0:00:17]} h5 {[%emt 0:05:48]} 36. f5 {[%emt 0:00:52]} gxf5 {[%emt 0:00:18]} 37. gxh5 {[%emt 0:00:02]} Ke5 {[%emt 0:01:23]} 38. h6 {[%emt 0:00:02]} Kf6 {[%emt 0:00:24]} 39. h7 {[%emt 0:00:02]} Kg7 {[%emt 0:00:12]} 40. Kf4 {[%emt 0:00:03]} Kxh7 {[%emt 0:00:18]} 41. Kxf5 {[%emt 0:00:06]} Kh6 {[%emt 0:00:23]} 42. Ke4 {[%emt 0:00:03]} Kh5 {[%emt 0:00:32]} 43. Kd4 {[%emt 0:00:09]} Kh4 {[%emt 0:00:14]} 44. Kc4 {[%emt 0:00:03]} Kxh3 {[%emt 0:00:09]} 45. Kxb4 {[%emt 0:00:03]} Kg4 {[%emt 0:00:14]} 46. Kxa3 {[%emt 0:00:04]} Kf5 {[%emt 0:00:14]} 47. b4 {[%emt 0:00:09]} Ke5 {[%emt 0:00:08]} 48. Ka4 {[%emt 0:00:06]} Kd6 {[%emt 0:00:12]} 49. Kb5 {[%emt 0:00:03]} Kd7 {[%emt 0:00:26]} 50. Kb6 {[%emt 0:00:05]} Kc8 {[%emt 0:00:17]} 51. Ka7 {[%emt 0:00:03]} 1-0

[Event "360 One Wealth GP-4 2024"]
[Site "Mumbai"]
[Date "2024.03.13"]
[Round "3.10"]
[White "Soni Atharv"]
[Black "Vivek Ashok Jadhav"]
[Result "0-1"]
[ECO "B92"]
[WhiteElo "1684"]
[BlackElo "1559"]
[Annotator "NA RC"]
[PlyCount "72"]
[EventDate "2024.03.10"]
[EventCountry "IND"]
[SourceTitle "playchess.com"]
[Source "ChessBase"]
[SourceQuality "1"]
[TimeControl "5400+30"]

1. e4 {[%emt 0:00:03]} c5 {[%emt 0:00:17]} 2. Nf3 {[%emt 0:00:05]} d6 {[%emt 0:00:22]} 3. d4 {[%emt 0:00:06]} cxd4 {[%emt 0:00:24]} 4. Nxd4 {[%emt 0:00:02]} Nf6 {[%emt 0:00:47]} 5. Nc3 {[%emt 0:00:03]} a6 {[%emt 0:00:35]} 6. Be2 {[%emt 0:00:06]} Nc6 {[%emt 0:01:54]} 7. Be3 {[%emt 0:00:48]} e5 {[%emt 0:04:47]} 8. Nb3 {[%emt 0:00:06]} Be6 {[%emt 0:01:32]} 9. O-O {[%emt 0:00:13]} Be7 {[%emt 0:01:58]} 10. Kh1 {[%emt 0:00:40]} O-O {[%emt 0:01:02]} 11. f4 {[%emt 0:00:41]} exf4 {[%emt 0:00:43]} 12. Bxf4 {[%emt 0:01:41]} Rc8 {[%emt 0:01:53]} 13. Qe1 {[%emt 0:05:31]} b5 {[%emt 0:02:26]} 14. Rd1 {[%emt 0:07:08]} Qc7 {[%emt 0:04:29]} 15. Bf3 {[%emt 0:25:18]} Ne5 {[%emt 0:17:49]} 16. Nd4 {[%emt 0:01:28]} Nc4 {[%emt 0:06:07]} 17. Bc1 {[%emt 0:00:27]} Ne5 {[%emt 0:13:07]} 18. Qg3 {[%emt 0:03:37]} Rfd8 {[%emt 0:04:38]} 19. Nd5 {[%emt 0:04:04]} Nxd5 {[%emt 0:03:07]} 20. exd5 {[%emt 0:00:12]} Bd7 {[%emt 0:00:49]} 21. Be4 {[%emt 0:01:57]} Ng6 {[%emt 0:02:00]} 22. Nf5 {[%emt 0:13:53]} Bxf5 {[%emt 0:02:16]} 23. Bxf5 {[%emt 0:03:04]} Rb8 {[%emt 0:01:32]} 24. Qf2 {[%emt 0:01:42]} Bf6 {[%emt 0:01:28]} 25. g3 {[%emt 0:00:19]} Re8 {[%emt 0:07:20]} 26. h4 {[%emt 0:03:24]} Qc4 {[%emt 0:03:04]} 27. h5 {[%emt 0:01:53]} Re2 {[%emt 0:10:37]} 28. Qa7 {[%emt 0:06:31]} Rbe8 {[%emt 0:00:50]} 29. hxg6 {[%emt 0:00:27]} hxg6 {[%emt 0:00:50]} 30. b3 {[%emt 0:00:15]} Qc3 {[%emt 0:01:24]} 31. Bd3 {[%emt 0:00:42]} Qc8 {[%emt 0:01:25]} 32. Rf2 {[%emt 0:06:01]} Qh3+ {[%emt 0:01:18]} 33. Kg1 {[%emt 0:00:01]} Qxg3+ {[%emt 0:01:25]} 34. Kf1 {[%emt 0:00:05]} Qh3+ {[%emt 0:01:27]} 35. Kg1 {[%emt 0:00:37]} Qg4+ 36. Kh1 Rxf2 0-1

[Event "360 One Wealth GP-4 2024"]
[Site "Mumbai"]
[Date "2024.03.13"]
[Round "3.11"]
[White "Sarode Aarush"]
[Black "Soni Deepak R"]
[Result "0-1"]
[ECO "B13"]
[WhiteElo "1428"]
[BlackElo "1681"]
[Annotator "NA"]
[PlyCount "66"]
[EventDate "2024.03.10"]
[EventCountry "IND"]
[SourceTitle "playchess.com"]
[Source "ChessBase"]
[SourceQuality "1"]
[TimeControl "5400+30"]

1. e4 {[%emt 0:00:03]} c6 {[%emt 0:09:39]} 2. d4 {[%emt 0:00:11]} d5 {[%emt 0:00:15]} 3. exd5 {[%emt 0:00:11]} cxd5 {[%emt 0:00:31]} 4. Bd3 {[%emt 0:00:08]} Nc6 {[%emt 0:00:05]} 5. c3 {[%emt 0:00:25]} Qc7 {[%emt 0:00:03]} 6. Be3 {[%emt 0:00:33]} Nf6 {[%emt 0:02:28]} 7. Nd2 {[%emt 0:03:16]} Bg4 {[%emt 0:08:06]} 8. Ngf3 {[%emt 0:01:13]} e6 {[%emt 0:01:23]} 9. O-O {[%emt 0:01:30]} Bd6 {[%emt 0:00:27]} 10. Qc2 {[%emt 0:02:01]} Rc8 {[%emt 0:01:57]} 11. Rac1 {[%emt 0:01:28]} a6 {[%emt 0:06:43]} 12. Bg5 {[%emt 0:01:01]} Bf4 {[%emt 0:03:29]} 13. Bxf4 {[%emt 0:03:00]} Qxf4 {[%emt 0:00:19]} 14. Qb3 {[%emt 0:02:24]} Qc7 {[%emt 0:07:20]} 15. Rfe1 {[%emt 0:04:06]} O-O {[%emt 0:05:13]} 16. Ne5 {[%emt 0:01:31]} Nxe5 {[%emt 0:03:03]} 17. Rxe5 {[%emt 0:01:32]} Nd7 {[%emt 0:01:05]} 18. Re3 {[%emt 0:01:27]} Rfe8 {[%emt 0:07:21]} 19. Rg3 {[%emt 0:03:30]} Nf6 {[%emt 0:06:58]} 20. Nf3 {[%emt 0:02:30]} Qf4 {[%emt 0:03:35]} 21. Re1 {[%emt 0:02:07]} Nh5 {[%emt 0:06:01]} 22. Rxg4 {[%emt 0:00:20]} Qxg4 {[%emt 0:00:16]} 23. Ne5 {[%emt 0:02:15]} Qf4 {[%emt 0:02:50]} 24. Qxb7 {[%emt 0:00:56]} Rb8 {[%emt 0:02:10]} 25. Qd7 {[%emt 0:00:31]} Red8 {[%emt 0:01:53]} 26. Qc7 {[%emt 0:01:01]} Rf8 {[%emt 0:01:32]} 27. g4 {[%emt 0:02:32]} Rxb2 {[%emt 0:01:41]} 28. Rf1 {[%emt 0:00:55]} Nf6 {[%emt 0:01:00]} 29. Qe7 {[%emt 0:00:51]} Ne4 {[%emt 0:02:51]} 30. Qh4 {[%emt 0:01:06]} Ng5 {[%emt 0:04:03]} 31. f3 {[%emt 0:03:08]} f6 {[%emt 0:01:13]} 32. Nd7 {[%emt 0:03:26]} Qe3+ {[%emt 0:00:49]} 33. Kh1 {[%emt 0:01:58]} Qxd3 {[%emt 0:00:40]} 0-1

[Event "360 One Wealth GP-4 2024"]
[Site "Mumbai"]
[Date "2024.03.13"]
[Round "3.13"]
[White "Milind Parle"]
[Black "Hitansh Kunal Gohil"]
[Result "1-0"]
[ECO "C78"]
[WhiteElo "1642"]
[BlackElo "1472"]
[Annotator "NA"]
[PlyCount "103"]
[EventDate "2024.03.10"]
[EventCountry "IND"]
[SourceTitle "playchess.com"]
[Source "ChessBase"]
[SourceQuality "1"]
[TimeControl "5400+30"]

1. e4 {[%emt 0:09:19]} e5 {[%emt 0:00:07]} 2. Nf3 {[%emt 0:00:04]} Nc6 {[%emt 0:00:12]} 3. Bb5 {[%emt 0:00:04]} a6 {[%emt 0:00:12]} 4. Ba4 {[%emt 0:00:05]} Nf6 {[%emt 0:00:07]} 5. O-O {[%emt 0:00:05]} b5 {[%emt 0:00:13]} 6. Bb3 {[%emt 0:00:05]} Bc5 {[%emt 0:00:09]} 7. c3 {[%emt 0:00:45]} d6 {[%emt 0:01:00]} 8. d4 {[%emt 0:00:14]} Bb6 {[%emt 0:00:18]} 9. h3 O-O {[%emt 0:03:12]} 10. Be3 Bb7 {[%emt 0:02:21]} 11. d5 Nb8 {[%emt 0:01:47]} 12. Bxb6 cxb6 {[%emt 0:02:46]} 13. Nbd2 Nbd7 {[%emt 0:00:29]} 14. Bc2 Qe7 {[%emt 0:01:13]} 15. a4 bxa4 {[%emt 0:02:53]} 16. Rxa4 Nc5 {[%emt 0:02:20]} 17. Ra2 a5 {[%emt 0:02:23]} 18. Re1 Nh5 {[%emt 0:02:49]} 19. Nc4 Nf4 {[%emt 0:07:20]} 20. Nxb6 Ra6 {[%emt 0:01:21]} 21. Nc4 Rfa8 {[%emt 0:02:30]} 22. b3 Bc8 {[%emt 0:06:30]} 23. Kh2 Qf6 {[%emt 0:01:58]} 24. Ne3 Qh6 {[%emt 0:05:39]} 25. Ng1 Qg6 {[%emt 0:06:38]} 26. Qf3 Rb8 {[%emt 0:04:56]} 27. Ra3 Nfd3 {[%emt 0:07:47]} 28. Bxd3 Nxd3 {[%emt 0:02:00]} 29. Rea1 Nc5 {[%emt 0:05:15]} 30. Nf5 Bxf5 {[%emt 0:02:29]} 31. exf5 Qf6 {[%emt 0:00:20]} 32. b4 axb4 {[%emt 0:03:30]} 33. Rxa6 Nxa6 {[%emt 0:01:57]} 34. Rxa6 b3 {[%emt 0:00:12]} 35. Qd3 b2 {[%emt 0:03:27]} 36. Qb1 Qg5 {[%emt 0:00:43]} 37. Qxb2 Qd8 {[%emt 0:04:22]} 38. Qe2 Rb3 {[%emt 0:02:25]} 39. Rc6 Rb6 {[%emt 0:00:39]} 40. Qc4 h6 {[%emt 0:00:37]} 41. Rc8 Qxc8 {[%emt 0:00:29]} 42. Qxc8+ Kh7 {[%emt 0:00:15]} 43. Qc7 Rb1 {[%emt 0:00:26]} 44. Qxf7 Rxg1 {[%emt 0:01:50]} 45. Kxg1 e4 {[%emt 0:04:14]} 46. Qg6+ Kh8 {[%emt 0:00:42]} 47. Qxd6 e3 {[%emt 0:00:23]} 48. fxe3 h5 {[%emt 0:00:51]} 49. Qb8+ Kh7 {[%emt 0:00:49]} 50. d6 h4 {[%emt 0:00:39]} 51. d7 g5 {[%emt 0:00:37]} 52. d8=Q 1-0